Workbook

Sheet Panel
N1: ="PRESUPUESTO INTERACTIVO "&Nombre_de_presupuesto -> PRESUPUESTO INTERACTIVO FAMILIA BERMEJO 2012
A3: ='Datos del gráfico'!C38 -> 4,000 €
D5: ingresos
A7: ='Datos del gráfico'!C39 -> 5,933 €
D9: gastos
A11: ='Datos del gráfico'!D40 &'Datos del gráfico'!C40&" €" -> -1933 €
D13: flujo de efectivo

Sheet Presupuesto
C1: ene | D1: feb | E1: mar | F1: abr | G1: may | H1: jun | I1: jul | J1: ago | K1: sep | L1: oct | M1: nov | N1: dic | O1: año | P1: media
B5: Saldo inicial | C5: 1000
B6: Ingresos totales | C6: =SUM(tbl_Ingresos[ene]) -> 4222 | D6: =SUM(tbl_Ingresos[feb]) -> 9033 | E6: =SUM(tbl_Ingresos[mar]) -> 4000 | F6: =SUM(tbl_Ingresos[abr]) -> 4045 | G6: =SUM(tbl_Ingresos[may]) -> 9000 | H6: =SUM(tbl_Ingresos[jun]) -> 1525 | I6: =SUM(tbl_Ingresos[jul]) -> 1500 | J6: =SUM(tbl_Ingresos[ago]) -> 6500 | K6: =SUM(tbl_Ingresos[sep]) -> 4000 | L6: =SUM(tbl_Ingresos[oct]) -> 4000 | M6: =SUM(tbl_Ingresos[nov]) -> 9000 | N6: =SUM(tbl_Ingresos[dic]) -> 4000 | O6: =SUM(tbl_Ingresos[año]) -> 60825 | P6: =O6/12 -> 5069
B7: Gastos totales | C7: =SUM(tbl_Categoría_de_gastos_01[ene],tbl_Categoría_de_gastos_02[ene],tbl_Categoría_de_gastos_03[ene],tbl_Categoría_de_gastos_04[ene],tbl_Categoría_de_gastos_05[ene],tbl_Categoría_de_gastos_06[ene],tbl_Categoría_de_gastos_07[ene],tbl_Categoría_de_gastos_08[ene],tbl_Categoría_de_gastos_09[ene],tbl_Categoría_de_gastos_10[ene],tbl_Categoría_de_gastos_11[ene],tbl_Categoría_de_gastos_12[ene],tbl_Categoría_de_gastos_13[ene],tbl_Categoría_de_gastos_14[ene],tbl_Categoría_de_gastos_15[ene]) -> 7936 | D7: =SUM(tbl_Categoría_de_gastos_01[feb],tbl_Categoría_de_gastos_02[feb],tbl_Categoría_de_gastos_03[feb],tbl_Categoría_de_gastos_04[feb],tbl_Categoría_de_gastos_05[feb],tbl_Categoría_de_gastos_06[feb],tbl_Categoría_de_gastos_07[feb],tbl_Categoría_de_gastos_08[feb],tbl_Categoría_de_gastos_09[feb],tbl_Categoría_de_gastos_10[feb],tbl_Categoría_de_gastos_11[feb],tbl_Categoría_de_gastos_12[feb],tbl_Categoría_de_gastos_13[feb],tbl_Categoría_de_gastos_14[feb],tbl_Categoría_de_gastos_15[feb]) -> 5243 | E7: =SUM(tbl_Categoría_de_gastos_01[mar],tbl_Categoría_de_gastos_02[mar],tbl_Categoría_de_gastos_03[mar],tbl_Categoría_de_gastos_04[mar],tbl_Categoría_de_gastos_05[mar],tbl_Categoría_de_gastos_06[mar],tbl_Categoría_de_gastos_07[mar],tbl_Categoría_de_gastos_08[mar],tbl_Categoría_de_gastos_09[mar],tbl_Categoría_de_gastos_10[mar],tbl_Categoría_de_gastos_11[mar],tbl_Categoría_de_gastos_12[mar],tbl_Categoría_de_gastos_13[mar],tbl_Categoría_de_gastos_14[mar],tbl_Categoría_de_gastos_15[mar]) -> 5933 | F7: =SUM(tbl_Categoría_de_gastos_01[abr],tbl_Categoría_de_gastos_02[abr],tbl_Categoría_de_gastos_03[abr],tbl_Categoría_de_gastos_04[abr],tbl_Categoría_de_gastos_05[abr],tbl_Categoría_de_gastos_06[abr],tbl_Categoría_de_gastos_07[abr],tbl_Categoría_de_gastos_08[abr],tbl_Categoría_de_gastos_09[abr],tbl_Categoría_de_gastos_10[abr],tbl_Categoría_de_gastos_11[abr],tbl_Categoría_de_gastos_12[abr],tbl_Categoría_de_gastos_13[abr],tbl_Categoría_de_gastos_14[abr],tbl_Categoría_de_gastos_15[abr]) -> 5858 | G7: =SUM(tbl_Categoría_de_gastos_01[may],tbl_Categoría_de_gastos_02[may],tbl_Categoría_de_gastos_03[may],tbl_Categoría_de_gastos_04[may],tbl_Categoría_de_gastos_05[may],tbl_Categoría_de_gastos_06[may],tbl_Categoría_de_gastos_07[may],tbl_Categoría_de_gastos_08[may],tbl_Categoría_de_gastos_09[may],tbl_Categoría_de_gastos_10[may],tbl_Categoría_de_gastos_11[may],tbl_Categoría_de_gastos_12[may],tbl_Categoría_de_gastos_13[may],tbl_Categoría_de_gastos_14[may],tbl_Categoría_de_gastos_15[may]) -> 5468 | H7: =SUM(tbl_Categoría_de_gastos_01[jun],tbl_Categoría_de_gastos_02[jun],tbl_Categoría_de_gastos_03[jun],tbl_Categoría_de_gastos_04[jun],tbl_Categoría_de_gastos_05[jun],tbl_Categoría_de_gastos_06[jun],tbl_Categoría_de_gastos_07[jun],tbl_Categoría_de_gastos_08[jun],tbl_Categoría_de_gastos_09[jun],tbl_Categoría_de_gastos_10[jun],tbl_Categoría_de_gastos_11[jun],tbl_Categoría_de_gastos_12[jun],tbl_Categoría_de_gastos_13[jun],tbl_Categoría_de_gastos_14[jun],tbl_Categoría_de_gastos_15[jun]) -> 5118 | I7: =SUM(tbl_Categoría_de_gastos_01[jul],tbl_Categoría_de_gastos_02[jul],tbl_Categoría_de_gastos_03[jul],tbl_Categoría_de_gastos_04[jul],tbl_Categoría_de_gastos_05[jul],tbl_Categoría_de_gastos_06[jul],tbl_Categoría_de_gastos_07[jul],tbl_Categoría_de_gastos_08[jul],tbl_Categoría_de_gastos_09[jul],tbl_Categoría_de_gastos_10[jul],tbl_Categoría_de_gastos_11[jul],tbl_Categoría_de_gastos_12[jul],tbl_Categoría_de_gastos_13[jul],tbl_Categoría_de_gastos_14[jul],tbl_Categoría_de_gastos_15[jul]) -> 5743 | J7: =SUM(tbl_Categoría_de_gastos_01[ago],tbl_Categoría_de_gastos_02[ago],tbl_Categoría_de_gastos_03[ago],tbl_Categoría_de_gastos_04[ago],tbl_Categoría_de_gastos_05[ago],tbl_Categoría_de_gastos_06[ago],tbl_Categoría_de_gastos_07[ago],tbl_Categoría_de_gastos_08[ago],tbl_Categoría_de_gastos_09[ago],tbl_Categoría_de_gastos_10[ago],tbl_Categoría_de_gastos_11[ago],tbl_Categoría_de_gastos_12[ago],tbl_Categoría_de_gastos_13[ago],tbl_Categoría_de_gastos_14[ago],tbl_Categoría_de_gastos_15[ago]) -> 5353 | K7: =SUM(tbl_Categoría_de_gastos_01[sep],tbl_Categoría_de_gastos_02[sep],tbl_Categoría_de_gastos_03[sep],tbl_Categoría_de_gastos_04[sep],tbl_Categoría_de_gastos_05[sep],tbl_Categoría_de_gastos_06[sep],tbl_Categoría_de_gastos_07[sep],tbl_Categoría_de_gastos_08[sep],tbl_Categoría_de_gastos_09[sep],tbl_Categoría_de_gastos_10[sep],tbl_Categoría_de_gastos_11[sep],tbl_Categoría_de_gastos_12[sep],tbl_Categoría_de_gastos_13[sep],tbl_Categoría_de_gastos_14[sep],tbl_Categoría_de_gastos_15[sep]) -> 5983 | L7: =SUM(tbl_Categoría_de_gastos_01[oct],tbl_Categoría_de_gastos_02[oct],tbl_Categoría_de_gastos_03[oct],tbl_Categoría_de_gastos_04[oct],tbl_Categoría_de_gastos_05[oct],tbl_Categoría_de_gastos_06[oct],tbl_Categoría_de_gastos_07[oct],tbl_Categoría_de_gastos_08[oct],tbl_Categoría_de_gastos_09[oct],tbl_Categoría_de_gastos_10[oct],tbl_Categoría_de_gastos_11[oct],tbl_Categoría_de_gastos_12[oct],tbl_Categoría_de_gastos_13[oct],tbl_Categoría_de_gastos_14[oct],tbl_Categoría_de_gastos_15[oct]) -> 5943 | M7: =SUM(tbl_Categoría_de_gastos_01[nov],tbl_Categoría_de_gastos_02[nov],tbl_Categoría_de_gastos_03[nov],tbl_Categoría_de_gastos_04[nov],tbl_Categoría_de_gastos_05[nov],tbl_Categoría_de_gastos_06[nov],tbl_Categoría_de_gastos_07[nov],tbl_Categoría_de_gastos_08[nov],tbl_Categoría_de_gastos_09[nov],tbl_Categoría_de_gastos_10[nov],tbl_Categoría_de_gastos_11[nov],tbl_Categoría_de_gastos_12[nov],tbl_Categoría_de_gastos_13[nov],tbl_Categoría_de_gastos_14[nov],tbl_Categoría_de_gastos_15[nov]) -> 5058 | N7: =SUM(tbl_Categoría_de_gastos_01[dic],tbl_Categoría_de_gastos_02[dic],tbl_Categoría_de_gastos_03[dic],tbl_Categoría_de_gastos_04[dic],tbl_Categoría_de_gastos_05[dic],tbl_Categoría_de_gastos_06[dic],tbl_Categoría_de_gastos_07[dic],tbl_Categoría_de_gastos_08[dic],tbl_Categoría_de_gastos_09[dic],tbl_Categoría_de_gastos_10[dic],tbl_Categoría_de_gastos_11[dic],tbl_Categoría_de_gastos_12[dic],tbl_Categoría_de_gastos_13[dic],tbl_Categoría_de_gastos_14[dic],tbl_Categoría_de_gastos_15[dic]) -> 4958 | O7: =SUM(tbl_Categoría_de_gastos_01[año],tbl_Categoría_de_gastos_02[año],tbl_Categoría_de_gastos_03[año],tbl_Categoría_de_gastos_04[año],tbl_Categoría_de_gastos_05[año],tbl_Categoría_de_gastos_06[año],tbl_Categoría_de_gastos_07[año],tbl_Categoría_de_gastos_08[año],tbl_Categoría_de_gastos_09[año],tbl_Categoría_de_gastos_10[año],tbl_Categoría_de_gastos_11[año],tbl_Categoría_de_gastos_12[año],tbl_Categoría_de_gastos_13[año],tbl_Categoría_de_gastos_14[año],tbl_Categoría_de_gastos_15[año]) -> 68594 | P7: =O7/12 -> 5716
B8: Ingresos netos | C8: =C6-C7 -> -3714 | D8: =D6-D7 -> 3790 | E8: =E6-E7 -> -1933 | F8: -1813 | G8: 3532 | H8: -3593 | I8: -4243 | J8: 1147 | K8: -1983 | L8: -1943 | M8: 3942 | N8: -958 | O8: =O6-O7 -> -7769 | P8: =O8/12 -> -647
B9: FLUJO DE EFECTIVO TOTAL | C9: =C5+C6-C7 -> -2714 | D9: =C9+D6-D7 -> 1076 | E9: =D9+E6-E7 -> -857 | F9: -2670 | G9: 862 | H9: -2731 | I9: -6974 | J9: -5827 | K9: -7810 | L9: -9753 | M9: -5811 | N9: -6769
B12: ingresos
B13: Sueldos y propinas | C13: 4000 | D13: 4000 | E13: 4000 | F13: 4000 | G13: 4000 | H13: 1000 | I13: 1000 | J13: 1000 | K13: 4000 | L13: 4000 | M13: 4000 | N13: 4000 | O13: =SUM(tbl_Ingresos[[#This Row],[ene]:[dic]]) -> 39000 | P13: =tbl_Ingresos[[#This Row],[año]]/12 -> 3250
B14: Ingresos por intereses | C14: 222 | D14: 33 | F14: 45 | H14: 25 | O14: =SUM(tbl_Ingresos[[#This Row],[ene]:[dic]]) -> 325 | P14: =tbl_Ingresos[[#This Row],[año]]/12 -> 27
B15: Dividendos | D15: 5000 | G15: 5000 | J15: 5000 | M15: 5000 | O15: =SUM(tbl_Ingresos[[#This Row],[ene]:[dic]]) -> 20000 | P15: =tbl_Ingresos[[#This Row],[año]]/12 -> 1667
B16: reembolsos/devoluciones | H16: 500 | I16: 500 | J16: 500 | O16: =SUM(tbl_Ingresos[[#This Row],[ene]:[dic]]) -> 1500 | P16: =tbl_Ingresos[[#This Row],[año]]/12 -> 125
B17: Otros | O17: =SUM(tbl_Ingresos[[#This Row],[ene]:[dic]]) -> 0 | P17: =tbl_Ingresos[[#This Row],[año]]/12 -> 0
B18: INGRESOS TOTALES | C18: =SUM(tbl_Ingresos[ene]) -> 4222 | D18: =SUM(tbl_Ingresos[feb]) -> 9033 | E18: =SUM(tbl_Ingresos[mar]) -> 4000 | F18: =SUM(tbl_Ingresos[abr]) -> 4045 | G18: =SUM(tbl_Ingresos[may]) -> 9000 | H18: =SUM(tbl_Ingresos[jun]) -> 1525 | I18: =SUM(tbl_Ingresos[jul]) -> 1500 | J18: =SUM(tbl_Ingresos[ago]) -> 6500 | K18: =SUM(tbl_Ingresos[sep]) -> 4000 | L18: =SUM(tbl_Ingresos[oct]) -> 4000 | M18: =SUM(tbl_Ingresos[nov]) -> 9000 | N18: =SUM(tbl_Ingresos[dic]) -> 4000 | O18: =SUM(tbl_Ingresos[año]) -> 60825 | P18: =tbl_Ingresos[[#Totals],[año]]/12 -> 5069
B21: gastos domésticos
B22: Hipoteca/alquiler | C22: 850 | D22: 850 | E22: 850 | F22: 850 | G22: 850 | H22: 850 | I22: 850 | J22: 850 | K22: 850 | L22: 850 | M22: 900 | N22: 900 | O22: =SUM(tbl_Categoría_de_gastos_01[[#This Row],[ene]:[dic]]) -> 10300 | P22: =tbl_Categoría_de_gastos_01[[#This Row],[año]]/12 -> 858
B23: Electricidad | C23: 200 | D23: 200 | E23: 175 | F23: 150 | G23: 150 | H23: 175 | I23: 225 | J23: 275 | K23: 200 | L23: 150 | M23: 150 | N23: 150 | O23: =SUM(tbl_Categoría_de_gastos_01[[#This Row],[ene]:[dic]]) -> 2200 | P23: =tbl_Categoría_de_gastos_01[[#This Row],[año]]/12 -> 183
B24: Teléfono | C24: 50 | D24: 50 | E24: 100 | F24: 100 | G24: 50 | H24: 50 | I24: 100 | J24: 100 | K24: 50 | L24: 50 | M24: 50 | N24: 50 | O24: =SUM(tbl_Categoría_de_gastos_01[[#This Row],[ene]:[dic]]) -> 800 | P24: =tbl_Categoría_de_gastos_01[[#This Row],[año]]/12 -> 67
B25: Conexión por cable/vía satélite | C25: 69 | D25: 69 | E25: 69 | F25: 69 | G25: 69 | H25: 69 | I25: 69 | J25: 69 | K25: 69 | L25: 69 | M25: 69 | N25: 69 | O25: =SUM(tbl_Categoría_de_gastos_01[[#This Row],[ene]:[dic]]) -> 828 | P25: =tbl_Categoría_de_gastos_01[[#This Row],[año]]/12 -> 69
B26: Internet | C26: 39 | D26: 39 | E26: 39 | F26: 39 | G26: 39 | H26: 39 | I26: 39 | J26: 39 | K26: 39 | L26: 39 | M26: 39 | N26: 39 | O26: =SUM(tbl_Categoría_de_gastos_01[[#This Row],[ene]:[dic]]) -> 468 | P26: =tbl_Categoría_de_gastos_01[[#This Row],[año]]/12 -> 39
B27: =UPPER("Total " & B21) -> TOTAL GASTOS DOMÉSTICOS | C27: =SUM(tbl_Categoría_de_gastos_01[ene]) -> 1208 | D27: =SUM(tbl_Categoría_de_gastos_01[feb]) -> 1208 | E27: =SUM(tbl_Categoría_de_gastos_01[mar]) -> 1233 | F27: =SUM(tbl_Categoría_de_gastos_01[abr]) -> 1208 | G27: =SUM(tbl_Categoría_de_gastos_01[may]) -> 1158 | H27: =SUM(tbl_Categoría_de_gastos_01[jun]) -> 1183 | I27: =SUM(tbl_Categoría_de_gastos_01[jul]) -> 1283 | J27: =SUM(tbl_Categoría_de_gastos_01[ago]) -> 1333 | K27: =SUM(tbl_Categoría_de_gastos_01[sep]) -> 1208 | L27: =SUM(tbl_Categoría_de_gastos_01[oct]) -> 1158 | M27: =SUM(tbl_Categoría_de_gastos_01[nov]) -> 1208 | N27: =SUM(tbl_Categoría_de_gastos_01[dic]) -> 1208 | O27: =SUM(tbl_Categoría_de_gastos_01[año]) -> 14596 | P27: =tbl_Categoría_de_gastos_01[[#Totals],[año]]/12 -> 1216
B30: gastos cotidianos
B31: Comestibles | C31: 345 | D31: 250 | E31: 200 | F31: 400 | G31: 350 | H31: 250 | I31: 400 | J31: 350 | K31: 250 | L31: 400 | M31: 350 | N31: 250 | O31: =SUM(tbl_Categoría_de_gastos_02[[#This Row],[ene]:[dic]]) -> 3795 | P31: =tbl_Categoría_de_gastos_02[[#This Row],[año]]/12 -> 316
B32: Ropa | C32: 300 | F32: 300 | I32: 300 | L32: 300 | O32: =SUM(tbl_Categoría_de_gastos_02[[#This Row],[ene]:[dic]]) -> 1200 | P32: =tbl_Categoría_de_gastos_02[[#This Row],[año]]/12 -> 100
B33: Comidas fuera de casa | C33: 125 | D33: 125 | E33: 300 | F33: 125 | G33: 125 | H33: 200 | I33: 125 | J33: 125 | K33: 125 | L33: 125 | M33: 125 | N33: 125 | O33: =SUM(tbl_Categoría_de_gastos_02[[#This Row],[ene]:[dic]]) -> 1750 | P33: =tbl_Categoría_de_gastos_02[[#This Row],[año]]/12 -> 146
B34: Belleza/peluquería | C34: 25 | E34: 50 | G34: 25 | I34: 50 | K34: 25 | M34: 100 | O34: =SUM(tbl_Categoría_de_gastos_02[[#This Row],[ene]:[dic]]) -> 275 | P34: =tbl_Categoría_de_gastos_02[[#This Row],[año]]/12 -> 23
B35: Otros | O35: =SUM(tbl_Categoría_de_gastos_02[[#This Row],[ene]:[dic]]) -> 0 | P35: =tbl_Categoría_de_gastos_02[[#This Row],[año]]/12 -> 0
B36: =UPPER("Total " & B30) -> TOTAL GASTOS COTIDIANOS | C36: =SUM(tbl_Categoría_de_gastos_02[ene]) -> 795 | D36: =SUM(tbl_Categoría_de_gastos_02[feb]) -> 375 | E36: =SUM(tbl_Categoría_de_gastos_02[mar]) -> 550 | F36: =SUM(tbl_Categoría_de_gastos_02[abr]) -> 825 | G36: =SUM(tbl_Categoría_de_gastos_02[may]) -> 500 | H36: =SUM(tbl_Categoría_de_gastos_02[jun]) -> 450 | I36: =SUM(tbl_Categoría_de_gastos_02[jul]) -> 875 | J36: =SUM(tbl_Categoría_de_gastos_02[ago]) -> 475 | K36: =SUM(tbl_Categoría_de_gastos_02[sep]) -> 400 | L36: =SUM(tbl_Categoría_de_gastos_02[oct]) -> 825 | M36: =SUM(tbl_Categoría_de_gastos_02[nov]) -> 575 | N36: =SUM(tbl_Categoría_de_gastos_02[dic]) -> 375 | O36: =SUM(tbl_Categoría_de_gastos_02[año]) -> 7020 | P36: =tbl_Categoría_de_gastos_02[[#Totals],[año]]/12 -> 585
B39: niños
B40: Material escolar | C40: 123 | E40: 100 | J40: 345 | O40: =SUM(tbl_Categoría_de_gastos_03[[#This Row],[ene]:[dic]]) -> 568 | P40: =tbl_Categoría_de_gastos_03[[#This Row],[año]]/12 -> 47
B41: Ropa | D41: 100 | G41: 100 | K41: 100 | N41: 100 | O41: =SUM(tbl_Categoría_de_gastos_03[[#This Row],[ene]:[dic]]) -> 400 | P41: =tbl_Categoría_de_gastos_03[[#This Row],[año]]/12 -> 33
B42: Almuerzo escolar | C42: 50 | D42: 50 | E42: 50 | F42: 50 | G42: 50 | H42: 50 | K42: 50 | L42: 50 | M42: 50 | N42: 50 | O42: =SUM(tbl_Categoría_de_gastos_03[[#This Row],[ene]:[dic]]) -> 500 | P42: =tbl_Categoría_de_gastos_03[[#This Row],[año]]/12 -> 42
B43: Gastos médicos | C43: 200 | D43: 200 | E43: 200 | F43: 200 | G43: 200 | H43: 200 | I43: 200 | J43: 200 | K43: 200 | L43: 200 | M43: 200 | N43: 200 | O43: =SUM(tbl_Categoría_de_gastos_03[[#This Row],[ene]:[dic]]) -> 2400 | P43: =tbl_Categoría_de_gastos_03[[#This Row],[año]]/12 -> 200
B44: Otros | C44: 2000 | D44: 150 | H44: 200 | L44: 100 | O44: =SUM(tbl_Categoría_de_gastos_03[[#This Row],[ene]:[dic]]) -> 2450 | P44: =tbl_Categoría_de_gastos_03[[#This Row],[año]]/12 -> 204
B45: =UPPER("Total " & B39) -> TOTAL NIÑOS | C45: =SUM(tbl_Categoría_de_gastos_03[ene]) -> 2373 | D45: =SUM(tbl_Categoría_de_gastos_03[feb]) -> 500 | E45: =SUM(tbl_Categoría_de_gastos_03[mar]) -> 350 | F45: =SUM(tbl_Categoría_de_gastos_03[abr]) -> 250 | G45: =SUM(tbl_Categoría_de_gastos_03[may]) -> 350 | H45: =SUM(tbl_Categoría_de_gastos_03[jun]) -> 450 | I45: =SUM(tbl_Categoría_de_gastos_03[jul]) -> 200 | J45: =SUM(tbl_Categoría_de_gastos_03[ago]) -> 545 | K45: =SUM(tbl_Categoría_de_gastos_03[sep]) -> 350 | L45: =SUM(tbl_Categoría_de_gastos_03[oct]) -> 350 | M45: =SUM(tbl_Categoría_de_gastos_03[nov]) -> 250 | N45: =SUM(tbl_Categoría_de_gastos_03[dic]) -> 350 | O45: =SUM(tbl_Categoría_de_gastos_03[año]) -> 6318 | P45: =tbl_Categoría_de_gastos_03[[#Totals],[año]]/12 -> 527
B48: transporte
B49: Cuotas de los vehículos | C49: 600 | D49: 600 | E49: 600 | F49: 600 | G49: 600 | H49: 600 | I49: 600 | J49: 600 | K49: 600 | L49: 600 | M49: 600 | N49: 600 | O49: =SUM(tbl_Categoría_de_gastos_04[[#This Row],[ene]:[dic]]) -> 7200 | P49: =tbl_Categoría_de_gastos_04[[#This Row],[año]]/12 -> 600
B50: Combustible | C50: 325 | D50: 325 | E50: 325 | F50: 325 | G50: 325 | H50: 500 | I50: 500 | J50: 500 | K50: 325 | L50: 325 | M50: 325 | N50: 325 | O50: =SUM(tbl_Categoría_de_gastos_04[[#This Row],[ene]:[dic]]) -> 4425 | P50: =tbl_Categoría_de_gastos_04[[#This Row],[año]]/12 -> 369
B51: Reparaciones | D51: 100 | F51: 100 | H51: 100 | J51: 100 | L51: 100 | O51: =SUM(tbl_Categoría_de_gastos_04[[#This Row],[ene]:[dic]]) -> 500 | P51: =tbl_Categoría_de_gastos_04[[#This Row],[año]]/12 -> 42
B52: Registros/licencias | C52: 185 | K52: 225 | O52: =SUM(tbl_Categoría_de_gastos_04[[#This Row],[ene]:[dic]]) -> 410 | P52: =tbl_Categoría_de_gastos_04[[#This Row],[año]]/12 -> 34
B53: Otros | G53: 400 | O53: =SUM(tbl_Categoría_de_gastos_04[[#This Row],[ene]:[dic]]) -> 400 | P53: =tbl_Categoría_de_gastos_04[[#This Row],[año]]/12 -> 33
B54: =UPPER("Total " & B48) -> TOTAL TRANSPORTE | C54: =SUM(tbl_Categoría_de_gastos_04[ene]) -> 1110 | D54: =SUM(tbl_Categoría_de_gastos_04[feb]) -> 1025 | E54: =SUM(tbl_Categoría_de_gastos_04[mar]) -> 925 | F54: =SUM(tbl_Categoría_de_gastos_04[abr]) -> 1025 | G54: =SUM(tbl_Categoría_de_gastos_04[may]) -> 1325 | H54: =SUM(tbl_Categoría_de_gastos_04[jun]) -> 1200 | I54: =SUM(tbl_Categoría_de_gastos_04[jul]) -> 1100 | J54: =SUM(tbl_Categoría_de_gastos_04[ago]) -> 1200 | K54: =SUM(tbl_Categoría_de_gastos_04[sep]) -> 1150 | L54: =SUM(tbl_Categoría_de_gastos_04[oct]) -> 1025 | M54: =SUM(tbl_Categoría_de_gastos_04[nov]) -> 925 | N54: =SUM(tbl_Categoría_de_gastos_04[dic]) -> 925 | O54: =SUM(tbl_Categoría_de_gastos_04[año]) -> 12935 | P54: =tbl_Categoría_de_gastos_04[[#Totals],[año]]/12 -> 1078
B57: salud
B58: Médico/dentista | D58: 35 | G58: 35 | H58: 35 | I58: 35 | L58: 35 | O58: =SUM(tbl_Categoría_de_gastos_05[[#This Row],[ene]:[dic]]) -> 175 | P58: =tbl_Categoría_de_gastos_05[[#This Row],[año]]/12 -> 15
B59: Fármacos | C59: 25 | D59: 25 | E59: 25 | F59: 25 | G59: 25 | H59: 25 | I59: 25 | J59: 25 | K59: 25 | L59: 25 | M59: 25 | N59: 25 | O59: =SUM(tbl_Categoría_de_gastos_05[[#This Row],[ene]:[dic]]) -> 300 | P59: =tbl_Categoría_de_gastos_05[[#This Row],[año]]/12 -> 25
B60: Otros | E60: 150 | K60: 150 | O60: =SUM(tbl_Categoría_de_gastos_05[[#This Row],[ene]:[dic]]) -> 300 | P60: =tbl_Categoría_de_gastos_05[[#This Row],[año]]/12 -> 25
B61: =UPPER("Total " & B57) -> TOTAL SALUD | C61: =SUM(tbl_Categoría_de_gastos_05[ene]) -> 25 | D61: =SUM(tbl_Categoría_de_gastos_05[feb]) -> 60 | E61: =SUM(tbl_Categoría_de_gastos_05[mar]) -> 175 | F61: =SUM(tbl_Categoría_de_gastos_05[abr]) -> 25 | G61: =SUM(tbl_Categoría_de_gastos_05[may]) -> 60 | H61: =SUM(tbl_Categoría_de_gastos_05[jun]) -> 60 | I61: =SUM(tbl_Categoría_de_gastos_05[jul]) -> 60 | J61: =SUM(tbl_Categoría_de_gastos_05[ago]) -> 25 | K61: =SUM(tbl_Categoría_de_gastos_05[sep]) -> 175 | L61: =SUM(tbl_Categoría_de_gastos_05[oct]) -> 60 | M61: =SUM(tbl_Categoría_de_gastos_05[nov]) -> 25 | N61: =SUM(tbl_Categoría_de_gastos_05[dic]) -> 25 | O61: =SUM(tbl_Categoría_de_gastos_05[año]) -> 775 | P61: =tbl_Categoría_de_gastos_05[[#Totals],[año]]/12 -> 65
B64: seguros
B65: Vehículos | C65: 150 | D65: 150 | E65: 150 | F65: 150 | G65: 150 | H65: 150 | I65: 150 | J65: 150 | K65: 150 | L65: 150 | M65: 150 | N65: 150 | O65: =SUM(tbl_Categoría_de_gastos_06[[#This Row],[ene]:[dic]]) -> 1800 | P65: =tbl_Categoría_de_gastos_06[[#This Row],[año]]/12 -> 150
B66: Salud | C66: 675 | D66: 675 | E66: 675 | F66: 675 | G66: 675 | H66: 675 | I66: 675 | J66: 675 | K66: 675 | L66: 675 | M66: 675 | N66: 675 | O66: =SUM(tbl_Categoría_de_gastos_06[[#This Row],[ene]:[dic]]) -> 8100 | P66: =tbl_Categoría_de_gastos_06[[#This Row],[año]]/12 -> 675
B67: Vida | C67: 150 | D67: 150 | E67: 150 | F67: 150 | G67: 150 | H67: 150 | I67: 150 | J67: 150 | K67: 150 | L67: 150 | M67: 150 | N67: 150 | O67: =SUM(tbl_Categoría_de_gastos_06[[#This Row],[ene]:[dic]]) -> 1800 | P67: =tbl_Categoría_de_gastos_06[[#This Row],[año]]/12 -> 150
B68: =UPPER("Total " & B64) -> TOTAL SEGUROS | C68: =SUM(tbl_Categoría_de_gastos_06[ene]) -> 975 | D68: =SUM(tbl_Categoría_de_gastos_06[feb]) -> 975 | E68: =SUM(tbl_Categoría_de_gastos_06[mar]) -> 975 | F68: =SUM(tbl_Categoría_de_gastos_06[abr]) -> 975 | G68: =SUM(tbl_Categoría_de_gastos_06[may]) -> 975 | H68: =SUM(tbl_Categoría_de_gastos_06[jun]) -> 975 | I68: =SUM(tbl_Categoría_de_gastos_06[jul]) -> 975 | J68: =SUM(tbl_Categoría_de_gastos_06[ago]) -> 975 | K68: =SUM(tbl_Categoría_de_gastos_06[sep]) -> 975 | L68: =SUM(tbl_Categoría_de_gastos_06[oct]) -> 975 | M68: =SUM(tbl_Categoría_de_gastos_06[nov]) -> 975 | N68: =SUM(tbl_Categoría_de_gastos_06[dic]) -> 975 | O68: =SUM(tbl_Categoría_de_gastos_06[año]) -> 11700 | P68: =tbl_Categoría_de_gastos_06[[#Totals],[año]]/12 -> 975
B71: educación
B72: Matrícula | E72: 400 | K72: 400 | O72: =SUM(C72:N72) -> 800 | P72: =tbl_Categoría_de_gastos_07[[#This Row],[año]]/12 -> 67
B73: Libros | E73: 225 | K73: 225 | O73: =SUM(C73:N73) -> 450 | P73: =tbl_Categoría_de_gastos_07[[#This Row],[año]]/12 -> 38
B74: Otros | O74: 0 | P74: =tbl_Categoría_de_gastos_07[[#This Row],[año]]/12 -> 0
B75: =UPPER("Total " & B71) -> TOTAL EDUCACIÓN | C75: =SUM(tbl_Categoría_de_gastos_07[ene]) -> 0 | D75: =SUM(tbl_Categoría_de_gastos_07[feb]) -> 0 | E75: =SUM(tbl_Categoría_de_gastos_07[mar]) -> 625 | F75: =SUM(tbl_Categoría_de_gastos_07[abr]) -> 0 | G75: =SUM(tbl_Categoría_de_gastos_07[may]) -> 0 | H75: =SUM(tbl_Categoría_de_gastos_07[jun]) -> 0 | I75: =SUM(tbl_Categoría_de_gastos_07[jul]) -> 0 | J75: =SUM(tbl_Categoría_de_gastos_07[ago]) -> 0 | K75: =SUM(tbl_Categoría_de_gastos_07[sep]) -> 625 | L75: =SUM(tbl_Categoría_de_gastos_07[oct]) -> 0 | M75: =SUM(tbl_Categoría_de_gastos_07[nov]) -> 0 | N75: =SUM(tbl_Categoría_de_gastos_07[dic]) -> 0 | O75: =SUM(tbl_Categoría_de_gastos_07[año]) -> 1250 | P75: =tbl_Categoría_de_gastos_07[[#Totals],[año]]/12 -> 104
B78: caridad
B79: Regalos realizados | D79: 100 | H79: 100 | L79: 100 | O79: =SUM(tbl_Categoría_de_gastos_08[[#This Row],[ene]:[dic]]) -> 300 | P79: =tbl_Categoría_de_gastos_08[[#This Row],[año]]/12 -> 25
B80: Donaciones benéficas | E80: 100 | G80: 100 | I80: 100 | K80: 100 | M80: 100 | O80: =SUM(tbl_Categoría_de_gastos_08[[#This Row],[ene]:[dic]]) -> 500 | P80: =tbl_Categoría_de_gastos_08[[#This Row],[año]]/12 -> 42
B81: Otros | F81: 100 | J81: 100 | N81: 100 | O81: =SUM(tbl_Categoría_de_gastos_08[[#This Row],[ene]:[dic]]) -> 300 | P81: =tbl_Categoría_de_gastos_08[[#This Row],[año]]/12 -> 25
B82: =UPPER("Total " & B78) -> TOTAL CARIDAD | C82: =SUM(tbl_Categoría_de_gastos_08[ene]) -> 0 | D82: =SUM(tbl_Categoría_de_gastos_08[feb]) -> 100 | E82: =SUM(tbl_Categoría_de_gastos_08[mar]) -> 100 | F82: =SUM(tbl_Categoría_de_gastos_08[abr]) -> 100 | G82: =SUM(tbl_Categoría_de_gastos_08[may]) -> 100 | H82: =SUM(tbl_Categoría_de_gastos_08[jun]) -> 100 | I82: =SUM(tbl_Categoría_de_gastos_08[jul]) -> 100 | J82: =SUM(tbl_Categoría_de_gastos_08[ago]) -> 100 | K82: =SUM(tbl_Categoría_de_gastos_08[sep]) -> 100 | L82: =SUM(tbl_Categoría_de_gastos_08[oct]) -> 100 | M82: =SUM(tbl_Categoría_de_gastos_08[nov]) -> 100 | N82: =SUM(tbl_Categoría_de_gastos_08[dic]) -> 100 | O82: =SUM(tbl_Categoría_de_gastos_08[año]) -> 1100 | P82: =tbl_Categoría_de_gastos_08[[#Totals],[año]]/12 -> 92
B85: ahorros
B86: Fondo de emergencia | C86: 100 | D86: 100 | E86: 100 | F86: 100 | G86: 100 | K86: 100 | L86: 100 | M86: 100 | N86: 100 | O86: =SUM(tbl_Categoría_de_gastos_09[[#This Row],[ene]:[dic]]) -> 900 | P86: =tbl_Categoría_de_gastos_09[[#This Row],[año]]/12 -> 75
B87: Jubilación (plan 401k, cuenta individual) | C87: 500 | D87: 500 | E87: 500 | F87: 500 | G87: 500 | H87: 500 | I87: 500 | J87: 500 | K87: 500 | L87: 500 | M87: 500 | N87: 500 | O87: =SUM(tbl_Categoría_de_gastos_09[[#This Row],[ene]:[dic]]) -> 6000 | P87: =tbl_Categoría_de_gastos_09[[#This Row],[año]]/12 -> 500
B88: Transferencias a Ahorros | C88: 200 | D88: 200 | E88: 200 | F88: 200 | G88: 200 | K88: 200 | L88: 200 | M88: 200 | N88: 200 | O88: =SUM(tbl_Categoría_de_gastos_09[[#This Row],[ene]:[dic]]) -> 1800 | P88: =tbl_Categoría_de_gastos_09[[#This Row],[año]]/12 -> 150
B89: =UPPER("Total " & B85) -> TOTAL AHORROS | C89: =SUM(tbl_Categoría_de_gastos_09[ene]) -> 800 | D89: =SUM(tbl_Categoría_de_gastos_09[feb]) -> 800 | E89: =SUM(tbl_Categoría_de_gastos_09[mar]) -> 800 | F89: =SUM(tbl_Categoría_de_gastos_09[abr]) -> 800 | G89: =SUM(tbl_Categoría_de_gastos_09[may]) -> 800 | H89: =SUM(tbl_Categoría_de_gastos_09[jun]) -> 500 | I89: =SUM(tbl_Categoría_de_gastos_09[jul]) -> 500 | J89: =SUM(tbl_Categoría_de_gastos_09[ago]) -> 500 | K89: =SUM(tbl_Categoría_de_gastos_09[sep]) -> 800 | L89: =SUM(tbl_Categoría_de_gastos_09[oct]) -> 800 | M89: =SUM(tbl_Categoría_de_gastos_09[nov]) -> 800 | N89: =SUM(tbl_Categoría_de_gastos_09[dic]) -> 800 | O89: =SUM(tbl_Categoría_de_gastos_09[año]) -> 8700 | P89: =tbl_Categoría_de_gastos_09[[#Totals],[año]]/12 -> 725
B92: obligaciones
B93: Tarjeta de crédito 1 | C93: 145 | D93: 145 | E93: 145 | F93: 145 | G93: 145 | H93: 145 | I93: 145 | J93: 145 | K93: 145 | L93: 145 | M93: 145 | N93: 145 | O93: =SUM(tbl_Categoría_de_gastos_10[[#This Row],[ene]:[dic]]) -> 1740 | P93: =tbl_Categoría_de_gastos_10[[#This Row],[año]]/12 -> 145
B94: Impuestos federales | C94: 450 | F94: 450 | I94: 450 | L94: 450 | O94: =SUM(tbl_Categoría_de_gastos_10[[#This Row],[ene]:[dic]]) -> 1800 | P94: =tbl_Categoría_de_gastos_10[[#This Row],[año]]/12 -> 150
B95: Préstamo de estudios | C95: 55 | D95: 55 | E95: 55 | F95: 55 | G95: 55 | H95: 55 | I95: 55 | J95: 55 | K95: 55 | L95: 55 | M95: 55 | N95: 55 | O95: =SUM(tbl_Categoría_de_gastos_10[[#This Row],[ene]:[dic]]) -> 660 | P95: =tbl_Categoría_de_gastos_10[[#This Row],[año]]/12 -> 55
B96: =UPPER("Total " & B92) -> TOTAL OBLIGACIONES | C96: =SUM(tbl_Categoría_de_gastos_10[ene]) -> 650 | D96: =SUM(tbl_Categoría_de_gastos_10[feb]) -> 200 | E96: =SUM(tbl_Categoría_de_gastos_10[mar]) -> 200 | F96: =SUM(tbl_Categoría_de_gastos_10[abr]) -> 650 | G96: =SUM(tbl_Categoría_de_gastos_10[may]) -> 200 | H96: =SUM(tbl_Categoría_de_gastos_10[jun]) -> 200 | I96: =SUM(tbl_Categoría_de_gastos_10[jul]) -> 650 | J96: =SUM(tbl_Categoría_de_gastos_10[ago]) -> 200 | K96: =SUM(tbl_Categoría_de_gastos_10[sep]) -> 200 | L96: =SUM(tbl_Categoría_de_gastos_10[oct]) -> 650 | M96: =SUM(tbl_Categoría_de_gastos_10[nov]) -> 200 | N96: =SUM(tbl_Categoría_de_gastos_10[dic]) -> 200 | O96: =SUM(tbl_Categoría_de_gastos_10[año]) -> 4200 | P96: =tbl_Categoría_de_gastos_10[[#Totals],[año]]/12 -> 350
O100: =SUM(tbl_Categoría_de_gastos_11[[#This Row],[ene]:[dic]]) -> 0 | P100: =tbl_Categoría_de_gastos_11[[#This Row],[año]]/12 -> 0
O101: =SUM(tbl_Categoría_de_gastos_11[[#This Row],[ene]:[dic]]) -> 0 | P101: =tbl_Categoría_de_gastos_11[[#This Row],[año]]/12 -> 0
O102: =SUM(tbl_Categoría_de_gastos_11[[#This Row],[ene]:[dic]]) -> 0 | P102: =tbl_Categoría_de_gastos_11[[#This Row],[año]]/12 -> 0
B103: =UPPER("Total " & B99) -> TOTAL | C103: =SUM(tbl_Categoría_de_gastos_11[ene]) -> 0 | D103: =SUM(tbl_Categoría_de_gastos_11[feb]) -> 0 | E103: =SUM(tbl_Categoría_de_gastos_11[mar]) -> 0 | F103: =SUM(tbl_Categoría_de_gastos_11[abr]) -> 0 | G103: =SUM(tbl_Categoría_de_gastos_11[may]) -> 0 | H103: =SUM(tbl_Categoría_de_gastos_11[jun]) -> 0 | I103: =SUM(tbl_Categoría_de_gastos_11[jul]) -> 0 | J103: =SUM(tbl_Categoría_de_gastos_11[ago]) -> 0 | K103: =SUM(tbl_Categoría_de_gastos_11[sep]) -> 0 | L103: =SUM(tbl_Categoría_de_gastos_11[oct]) -> 0 | M103: =SUM(tbl_Categoría_de_gastos_11[nov]) -> 0 | N103: =SUM(tbl_Categoría_de_gastos_11[dic]) -> 0 | O103: =SUM(tbl_Categoría_de_gastos_11[año]) -> 0 | P103: =tbl_Categoría_de_gastos_11[[#Totals],[año]]/12 -> 0
O107: =SUM(tbl_Categoría_de_gastos_12[[#This Row],[ene]:[dic]]) -> 0 | P107: =tbl_Categoría_de_gastos_12[[#This Row],[año]]/12 -> 0
O108: =SUM(tbl_Categoría_de_gastos_12[[#This Row],[ene]:[dic]]) -> 0 | P108: =tbl_Categoría_de_gastos_12[[#This Row],[año]]/12 -> 0
O109: =SUM(tbl_Categoría_de_gastos_12[[#This Row],[ene]:[dic]]) -> 0 | P109: =tbl_Categoría_de_gastos_12[[#This Row],[año]]/12 -> 0
B110: =UPPER("Total " & B106) -> TOTAL | C110: =SUM(tbl_Categoría_de_gastos_12[ene]) -> 0 | D110: =SUM(tbl_Categoría_de_gastos_12[feb]) -> 0 | E110: =SUM(tbl_Categoría_de_gastos_12[mar]) -> 0 | F110: =SUM(tbl_Categoría_de_gastos_12[abr]) -> 0 | G110: =SUM(tbl_Categoría_de_gastos_12[may]) -> 0 | H110: =SUM(tbl_Categoría_de_gastos_12[jun]) -> 0 | I110: =SUM(tbl_Categoría_de_gastos_12[jul]) -> 0 | J110: =SUM(tbl_Categoría_de_gastos_12[ago]) -> 0 | K110: =SUM(tbl_Categoría_de_gastos_12[sep]) -> 0 | L110: =SUM(tbl_Categoría_de_gastos_12[oct]) -> 0 | M110: =SUM(tbl_Categoría_de_gastos_12[nov]) -> 0 | N110: =SUM(tbl_Categoría_de_gastos_12[dic]) -> 0 | O110: =SUM(tbl_Categoría_de_gastos_12[año]) -> 0 | P110: =tbl_Categoría_de_gastos_12[[#Totals],[año]]/12 -> 0
O114: =SUM(tbl_Categoría_de_gastos_13[[#This Row],[ene]:[dic]]) -> 0 | P114: =tbl_Categoría_de_gastos_13[[#This Row],[año]]/12 -> 0
O115: =SUM(tbl_Categoría_de_gastos_13[[#This Row],[ene]:[dic]]) -> 0 | P115: =tbl_Categoría_de_gastos_13[[#This Row],[año]]/12 -> 0
O116: =SUM(tbl_Categoría_de_gastos_13[[#This Row],[ene]:[dic]]) -> 0 | P116: =tbl_Categoría_de_gastos_13[[#This Row],[año]]/12 -> 0
B117: =UPPER("Total " & B113) -> TOTAL | C117: =SUM(tbl_Categoría_de_gastos_13[ene]) -> 0 | D117: =SUM(tbl_Categoría_de_gastos_13[feb]) -> 0 | E117: =SUM(tbl_Categoría_de_gastos_13[mar]) -> 0 | F117: =SUM(tbl_Categoría_de_gastos_13[abr]) -> 0 | G117: =SUM(tbl_Categoría_de_gastos_13[may]) -> 0 | H117: =SUM(tbl_Categoría_de_gastos_13[jun]) -> 0 | I117: =SUM(tbl_Categoría_de_gastos_13[jul]) -> 0 | J117: =SUM(tbl_Categoría_de_gastos_13[ago]) -> 0 | K117: =SUM(tbl_Categoría_de_gastos_13[sep]) -> 0 | L117: =SUM(tbl_Categoría_de_gastos_13[oct]) -> 0 | M117: =SUM(tbl_Categoría_de_gastos_13[nov]) -> 0 | N117: =SUM(tbl_Categoría_de_gastos_13[dic]) -> 0 | O117: =SUM(tbl_Categoría_de_gastos_13[año]) -> 0 | P117: =tbl_Categoría_de_gastos_13[[#Totals],[año]]/12 -> 0
O121: =SUM(tbl_Categoría_de_gastos_14[[#This Row],[ene]:[dic]]) -> 0 | P121: =tbl_Categoría_de_gastos_14[[#This Row],[año]]/12 -> 0
O122: =SUM(tbl_Categoría_de_gastos_14[[#This Row],[ene]:[dic]]) -> 0 | P122: =tbl_Categoría_de_gastos_14[[#This Row],[año]]/12 -> 0
O123: =SUM(tbl_Categoría_de_gastos_14[[#This Row],[ene]:[dic]]) -> 0 | P123: =tbl_Categoría_de_gastos_14[[#This Row],[año]]/12 -> 0
B124: =UPPER("Total " & B120) -> TOTAL | C124: =SUM(tbl_Categoría_de_gastos_14[ene]) -> 0 | D124: =SUM(tbl_Categoría_de_gastos_14[feb]) -> 0 | E124: =SUM(tbl_Categoría_de_gastos_14[mar]) -> 0 | F124: =SUM(tbl_Categoría_de_gastos_14[abr]) -> 0 | G124: =SUM(tbl_Categoría_de_gastos_14[may]) -> 0 | H124: =SUM(tbl_Categoría_de_gastos_14[jun]) -> 0 | I124: =SUM(tbl_Categoría_de_gastos_14[jul]) -> 0 | J124: =SUM(tbl_Categoría_de_gastos_14[ago]) -> 0 | K124: =SUM(tbl_Categoría_de_gastos_14[sep]) -> 0 | L124: =SUM(tbl_Categoría_de_gastos_14[oct]) -> 0 | M124: =SUM(tbl_Categoría_de_gastos_14[nov]) -> 0 | N124: =SUM(tbl_Categoría_de_gastos_14[dic]) -> 0 | O124: =SUM(tbl_Categoría_de_gastos_14[año]) -> 0 | P124: =tbl_Categoría_de_gastos_14[[#Totals],[año]]/12 -> 0
O128: =SUM(tbl_Categoría_de_gastos_15[[#This Row],[ene]:[dic]]) -> 0 | P128: =tbl_Categoría_de_gastos_15[[#This Row],[año]]/12 -> 0
O129: =SUM(tbl_Categoría_de_gastos_15[[#This Row],[ene]:[dic]]) -> 0 | P129: =tbl_Categoría_de_gastos_15[[#This Row],[año]]/12 -> 0
O130: =SUM(tbl_Categoría_de_gastos_15[[#This Row],[ene]:[dic]]) -> 0 | P130: =tbl_Categoría_de_gastos_15[[#This Row],[año]]/12 -> 0
B131: =UPPER("Total " & B127) -> TOTAL | C131: =SUM(tbl_Categoría_de_gastos_15[ene]) -> 0 | D131: =SUM(tbl_Categoría_de_gastos_15[feb]) -> 0 | E131: =SUM(tbl_Categoría_de_gastos_15[mar]) -> 0 | F131: =SUM(tbl_Categoría_de_gastos_15[abr]) -> 0 | G131: =SUM(tbl_Categoría_de_gastos_15[may]) -> 0 | H131: =SUM(tbl_Categoría_de_gastos_15[jun]) -> 0 | I131: =SUM(tbl_Categoría_de_gastos_15[jul]) -> 0 | J131: =SUM(tbl_Categoría_de_gastos_15[ago]) -> 0 | K131: =SUM(tbl_Categoría_de_gastos_15[sep]) -> 0 | L131: =SUM(tbl_Categoría_de_gastos_15[oct]) -> 0 | M131: =SUM(tbl_Categoría_de_gastos_15[nov]) -> 0 | N131: =SUM(tbl_Categoría_de_gastos_15[dic]) -> 0 | O131: =SUM(tbl_Categoría_de_gastos_15[año]) -> 0 | P131: =tbl_Categoría_de_gastos_15[[#Totals],[año]]/12 -> 0

Sheet Configuración
B1: FAMILIA BERMEJO 2012
B2: ingresos | D2: gastos
B3: sueldos y propinas
B4: ingresos por intereses | D4: gastos domésticos | F4: gastos domésticos | H4: gastos cotidianos | J4: niños
B5: dividendos | D5: gastos cotidianos | F5: hipoteca/alquiler | H5: comestibles | J5: gastos médicos
B6: regalos recibidos | D6: niños | F6: electricidad | H6: suministros personales | J6: ropa
B7: reembolsos/devoluciones | D7: transporte | F7: combustible | H7: ropa | J7: matrícula escolar
B8: transferencias de ahorros | D8: salud | F8: agua/alcantarillado/basura | H8: servicios de limpieza | J8: almuerzo escolar
B9: otros | D9: seguros | F9: teléfono | H9: comidas fuera de casa | J9: material escolar
D10: educación | F10: conexión por cable/vía satélite | H10: tintorería | J10: servicio de canguro
D11: caridad | F11: internet | H11: belleza/peluquería | J11: juguetes/juegos
D12: ahorros | F12: mobiliario/electrodomésticos | H12: otros | J12: otros
D13: obligaciones | F13: césped/jardín
D14: entretenimiento | F14: consumibles domésticos
D15: mascotas | F15: mantenimiento
D16: suscripciones | F16: mejoras
D17: vacaciones | F17: otros
D18: varios
F20: transporte | H20: salud | J20: seguros
F21: cuotas de los vehículos | H21: médico/dentista | J21: automóvil
F22: combustible | H22: fármacos | J22: salud
F23: gastos de autobús/taxi/tren | H23: cuotas del gimnasio | J23: hogar/alquiler
F24: reparaciones | H24: emergencias | J24: vida
F25: registros/licencias | H25: otros | J25: otros
F26: otros
F29: educación | H29: caridad | J29: ahorros
F30: matrícula | H30: regalos realizados | J30: fondo de emergencia
F31: libros | H31: donaciones benéficas | J31: transferencias a ahorros
F32: clases de música | H32: donaciones religiosas | J32: jubilación (plan 401k, cuenta individual)
F33: otros | H33: otros | J33: inversiones
J34: universidad
J35: otros
F38: obligaciones | H38: entretenimiento | J38: mascotas
F39: préstamo de estudios | H39: vídeos/dvd | J39: alimentación
F40: otros préstamos | H40: música | J40: gastos médicos
F41: tarjeta de crédito 1 | H41: juegos | J41: juguetes/consumibles
F42: tarjeta de crédito 2 | H42: alquileres | J42: otros
F43: tarjeta de crédito 3 | H43: cine/teatro
F44: pensión alimenticia/ayuda familiar | H44: conciertos/representaciones
F45: impuestos federales | H45: libros
F46: impuesto sobre bienes inmuebles | H46: hobbies
F47: impuestos estatales/locales | H47: material fílmico/fotográfico
F48: cuotas de la hoa | H48: deportes
F49: gastos jurídicos | H49: entretenimiento fuera de casa
F50: otros | H50: juguetes/gadgets
H51: otros
F53: suscripciones | H53: vacaciones | J53: varios
F54: periódicos | H54: viajes | J54: cuotas bancarias
F55: revistas | H55: alojamiento | J55: envíos
F56: cuotas | H56: alimentación | J56: otros
F57: pertenencia a clubes | H57: coche de alquiler
F58: otros | H58: entretenimiento
H59: otros

Sheet Datos del gráfico (hidden)
B1: *** Esta hoja debe permanecer oculta ***
B4: Período | C4: 3
C6: ene | D6: feb | E6: mar | F6: abr | G6: may | H6: jun | I6: jul | J6: ago | K6: sep | L6: oct | M6: nov | N6: dic | O6: año | P6: Media
B7: =LOWER(Presupuesto!B127) ->  | C7: =SUM(tbl_Categoría_de_gastos_15[ene]) -> 0 | D7: =SUM(tbl_Categoría_de_gastos_15[feb]) -> 0 | E7: =SUM(tbl_Categoría_de_gastos_15[mar]) -> 0 | F7: =SUM(tbl_Categoría_de_gastos_15[abr]) -> 0 | G7: =SUM(tbl_Categoría_de_gastos_15[may]) -> 0 | H7: =SUM(tbl_Categoría_de_gastos_15[jun]) -> 0 | I7: =SUM(tbl_Categoría_de_gastos_15[jul]) -> 0 | J7: =SUM(tbl_Categoría_de_gastos_15[ago]) -> 0 | K7: =SUM(tbl_Categoría_de_gastos_15[sep]) -> 0 | L7: =SUM(tbl_Categoría_de_gastos_15[oct]) -> 0 | M7: =SUM(tbl_Categoría_de_gastos_15[nov]) -> 0 | N7: =SUM(tbl_Categoría_de_gastos_15[dic]) -> 0 | O7: =SUM(tbl_Categoría_de_gastos_15[año]) -> 0 | P7: =SUM(tbl_Categoría_de_gastos_15[media]) -> 0
B8: =LOWER(Presupuesto!B120) ->  | C8: =SUM(tbl_Categoría_de_gastos_14[ene]) -> 0 | D8: =SUM(tbl_Categoría_de_gastos_14[feb]) -> 0 | E8: =SUM(tbl_Categoría_de_gastos_14[mar]) -> 0 | F8: =SUM(tbl_Categoría_de_gastos_14[abr]) -> 0 | G8: =SUM(tbl_Categoría_de_gastos_14[may]) -> 0 | H8: =SUM(tbl_Categoría_de_gastos_14[jun]) -> 0 | I8: =SUM(tbl_Categoría_de_gastos_14[jul]) -> 0 | J8: =SUM(tbl_Categoría_de_gastos_14[ago]) -> 0 | K8: =SUM(tbl_Categoría_de_gastos_14[sep]) -> 0 | L8: =SUM(tbl_Categoría_de_gastos_14[oct]) -> 0 | M8: =SUM(tbl_Categoría_de_gastos_14[nov]) -> 0 | N8: =SUM(tbl_Categoría_de_gastos_14[dic]) -> 0 | O8: =SUM(tbl_Categoría_de_gastos_14[año]) -> 0 | P8: =SUM(tbl_Categoría_de_gastos_14[media]) -> 0
B9: =LOWER(Presupuesto!B113) ->  | C9: =SUM(tbl_Categoría_de_gastos_13[ene]) -> 0 | D9: =SUM(tbl_Categoría_de_gastos_13[feb]) -> 0 | E9: =SUM(tbl_Categoría_de_gastos_13[mar]) -> 0 | F9: =SUM(tbl_Categoría_de_gastos_13[abr]) -> 0 | G9: =SUM(tbl_Categoría_de_gastos_13[may]) -> 0 | H9: =SUM(tbl_Categoría_de_gastos_13[jun]) -> 0 | I9: =SUM(tbl_Categoría_de_gastos_13[jul]) -> 0 | J9: =SUM(tbl_Categoría_de_gastos_13[ago]) -> 0 | K9: =SUM(tbl_Categoría_de_gastos_13[sep]) -> 0 | L9: =SUM(tbl_Categoría_de_gastos_13[oct]) -> 0 | M9: =SUM(tbl_Categoría_de_gastos_13[nov]) -> 0 | N9: =SUM(tbl_Categoría_de_gastos_13[dic]) -> 0 | O9: =SUM(tbl_Categoría_de_gastos_13[año]) -> 0 | P9: =SUM(tbl_Categoría_de_gastos_13[media]) -> 0
B10: =LOWER(Presupuesto!B106) ->  | C10: =SUM(tbl_Categoría_de_gastos_12[ene]) -> 0 | D10: =SUM(tbl_Categoría_de_gastos_12[feb]) -> 0 | E10: =SUM(tbl_Categoría_de_gastos_12[mar]) -> 0 | F10: =SUM(tbl_Categoría_de_gastos_12[abr]) -> 0 | G10: =SUM(tbl_Categoría_de_gastos_12[may]) -> 0 | H10: =SUM(tbl_Categoría_de_gastos_12[jun]) -> 0 | I10: =SUM(tbl_Categoría_de_gastos_12[jul]) -> 0 | J10: =SUM(tbl_Categoría_de_gastos_12[ago]) -> 0 | K10: =SUM(tbl_Categoría_de_gastos_12[sep]) -> 0 | L10: =SUM(tbl_Categoría_de_gastos_12[oct]) -> 0 | M10: =SUM(tbl_Categoría_de_gastos_12[nov]) -> 0 | N10: =SUM(tbl_Categoría_de_gastos_12[dic]) -> 0 | O10: =SUM(tbl_Categoría_de_gastos_12[año]) -> 0 | P10: =SUM(tbl_Categoría_de_gastos_12[media]) -> 0
B11: =LOWER(Presupuesto!B99) ->  | C11: =SUM(tbl_Categoría_de_gastos_11[ene]) -> 0 | D11: =SUM(tbl_Categoría_de_gastos_11[feb]) -> 0 | E11: =SUM(tbl_Categoría_de_gastos_11[mar]) -> 0 | F11: =SUM(tbl_Categoría_de_gastos_11[abr]) -> 0 | G11: =SUM(tbl_Categoría_de_gastos_11[may]) -> 0 | H11: =SUM(tbl_Categoría_de_gastos_11[jun]) -> 0 | I11: =SUM(tbl_Categoría_de_gastos_11[jul]) -> 0 | J11: =SUM(tbl_Categoría_de_gastos_11[ago]) -> 0 | K11: =SUM(tbl_Categoría_de_gastos_11[sep]) -> 0 | L11: =SUM(tbl_Categoría_de_gastos_11[oct]) -> 0 | M11: =SUM(tbl_Categoría_de_gastos_11[nov]) -> 0 | N11: =SUM(tbl_Categoría_de_gastos_11[dic]) -> 0 | O11: =SUM(tbl_Categoría_de_gastos_11[año]) -> 0 | P11: =SUM(tbl_Categoría_de_gastos_11[media]) -> 0
B12: =LOWER(Presupuesto!B92) -> obligaciones | C12: =SUM(tbl_Categoría_de_gastos_10[ene]) -> 650 | D12: =SUM(tbl_Categoría_de_gastos_10[feb]) -> 200 | E12: =SUM(tbl_Categoría_de_gastos_10[mar]) -> 200 | F12: =SUM(tbl_Categoría_de_gastos_10[abr]) -> 650 | G12: =SUM(tbl_Categoría_de_gastos_10[may]) -> 200 | H12: =SUM(tbl_Categoría_de_gastos_10[jun]) -> 200 | I12: =SUM(tbl_Categoría_de_gastos_10[jul]) -> 650 | J12: =SUM(tbl_Categoría_de_gastos_10[ago]) -> 200 | K12: =SUM(tbl_Categoría_de_gastos_10[sep]) -> 200 | L12: =SUM(tbl_Categoría_de_gastos_10[oct]) -> 650 | M12: =SUM(tbl_Categoría_de_gastos_10[nov]) -> 200 | N12: =SUM(tbl_Categoría_de_gastos_10[dic]) -> 200 | O12: =SUM(tbl_Categoría_de_gastos_10[año]) -> 4,200 | P12: =SUM(tbl_Categoría_de_gastos_10[media]) -> 350
B13: =LOWER(Presupuesto!B85) -> ahorros | C13: =SUM(tbl_Categoría_de_gastos_09[ene]) -> 800 | D13: =SUM(tbl_Categoría_de_gastos_09[feb]) -> 800 | E13: =SUM(tbl_Categoría_de_gastos_09[mar]) -> 800 | F13: =SUM(tbl_Categoría_de_gastos_09[abr]) -> 800 | G13: =SUM(tbl_Categoría_de_gastos_09[may]) -> 800 | H13: =SUM(tbl_Categoría_de_gastos_09[jun]) -> 500 | I13: =SUM(tbl_Categoría_de_gastos_09[jul]) -> 500 | J13: =SUM(tbl_Categoría_de_gastos_09[ago]) -> 500 | K13: =SUM(tbl_Categoría_de_gastos_09[sep]) -> 800 | L13: =SUM(tbl_Categoría_de_gastos_09[oct]) -> 800 | M13: =SUM(tbl_Categoría_de_gastos_09[nov]) -> 800 | N13: =SUM(tbl_Categoría_de_gastos_09[dic]) -> 800 | O13: =SUM(tbl_Categoría_de_gastos_09[año]) -> 8,700 | P13: =SUM(tbl_Categoría_de_gastos_09[media]) -> 725
B14: =LOWER(Presupuesto!B78) -> caridad | C14: =SUM(tbl_Categoría_de_gastos_08[ene]) -> 0 | D14: =SUM(tbl_Categoría_de_gastos_08[feb]) -> 100 | E14: =SUM(tbl_Categoría_de_gastos_08[mar]) -> 100 | F14: =SUM(tbl_Categoría_de_gastos_08[abr]) -> 100 | G14: =SUM(tbl_Categoría_de_gastos_08[may]) -> 100 | H14: =SUM(tbl_Categoría_de_gastos_08[jun]) -> 100 | I14: =SUM(tbl_Categoría_de_gastos_08[jul]) -> 100 | J14: =SUM(tbl_Categoría_de_gastos_08[ago]) -> 100 | K14: =SUM(tbl_Categoría_de_gastos_08[sep]) -> 100 | L14: =SUM(tbl_Categoría_de_gastos_08[oct]) -> 100 | M14: =SUM(tbl_Categoría_de_gastos_08[nov]) -> 100 | N14: =SUM(tbl_Categoría_de_gastos_08[dic]) -> 100 | O14: =SUM(tbl_Categoría_de_gastos_08[año]) -> 1,100 | P14: =SUM(tbl_Categoría_de_gastos_08[media]) -> 92
B15: =LOWER(Presupuesto!B71) -> educación | C15: =SUM(tbl_Categoría_de_gastos_07[ene]) -> 0 | D15: =SUM(tbl_Categoría_de_gastos_07[feb]) -> 0 | E15: =SUM(tbl_Categoría_de_gastos_07[mar]) -> 625 | F15: =SUM(tbl_Categoría_de_gastos_07[abr]) -> 0 | G15: =SUM(tbl_Categoría_de_gastos_07[may]) -> 0 | H15: =SUM(tbl_Categoría_de_gastos_07[jun]) -> 0 | I15: =SUM(tbl_Categoría_de_gastos_07[jul]) -> 0 | J15: =SUM(tbl_Categoría_de_gastos_07[ago]) -> 0 | K15: =SUM(tbl_Categoría_de_gastos_07[sep]) -> 625 | L15: =SUM(tbl_Categoría_de_gastos_07[oct]) -> 0 | M15: =SUM(tbl_Categoría_de_gastos_07[nov]) -> 0 | N15: =SUM(tbl_Categoría_de_gastos_07[dic]) -> 0 | O15: =SUM(tbl_Categoría_de_gastos_07[año]) -> 1,250 | P15: =SUM(tbl_Categoría_de_gastos_07[media]) -> 104
B16: =LOWER(Presupuesto!B64) -> seguros | C16: =SUM(tbl_Categoría_de_gastos_06[ene]) -> 975 | D16: =SUM(tbl_Categoría_de_gastos_06[feb]) -> 975 | E16: =SUM(tbl_Categoría_de_gastos_06[mar]) -> 975 | F16: =SUM(tbl_Categoría_de_gastos_06[abr]) -> 975 | G16: =SUM(tbl_Categoría_de_gastos_06[may]) -> 975 | H16: =SUM(tbl_Categoría_de_gastos_06[jun]) -> 975 | I16: =SUM(tbl_Categoría_de_gastos_06[jul]) -> 975 | J16: =SUM(tbl_Categoría_de_gastos_06[ago]) -> 975 | K16: =SUM(tbl_Categoría_de_gastos_06[sep]) -> 975 | L16: =SUM(tbl_Categoría_de_gastos_06[oct]) -> 975 | M16: =SUM(tbl_Categoría_de_gastos_06[nov]) -> 975 | N16: =SUM(tbl_Categoría_de_gastos_06[dic]) -> 975 | O16: =SUM(tbl_Categoría_de_gastos_06[año]) -> 11,700 | P16: =SUM(tbl_Categoría_de_gastos_06[media]) -> 975
B17: =LOWER(Presupuesto!B57) -> salud | C17: =SUM(tbl_Categoría_de_gastos_05[ene]) -> 25 | D17: =SUM(tbl_Categoría_de_gastos_05[feb]) -> 60 | E17: =SUM(tbl_Categoría_de_gastos_05[mar]) -> 175 | F17: =SUM(tbl_Categoría_de_gastos_05[abr]) -> 25 | G17: =SUM(tbl_Categoría_de_gastos_05[may]) -> 60 | H17: =SUM(tbl_Categoría_de_gastos_05[jun]) -> 60 | I17: =SUM(tbl_Categoría_de_gastos_05[jul]) -> 60 | J17: =SUM(tbl_Categoría_de_gastos_05[ago]) -> 25 | K17: =SUM(tbl_Categoría_de_gastos_05[sep]) -> 175 | L17: =SUM(tbl_Categoría_de_gastos_05[oct]) -> 60 | M17: =SUM(tbl_Categoría_de_gastos_05[nov]) -> 25 | N17: =SUM(tbl_Categoría_de_gastos_05[dic]) -> 25 | O17: =SUM(tbl_Categoría_de_gastos_05[año]) -> 775 | P17: =SUM(tbl_Categoría_de_gastos_05[media]) -> 65
B18: =LOWER(Presupuesto!B48) -> transporte | C18: =SUM(tbl_Categoría_de_gastos_04[ene]) -> 1,110 | D18: =SUM(tbl_Categoría_de_gastos_04[feb]) -> 1,025 | E18: =SUM(tbl_Categoría_de_gastos_04[mar]) -> 925 | F18: =SUM(tbl_Categoría_de_gastos_04[abr]) -> 1,025 | G18: =SUM(tbl_Categoría_de_gastos_04[may]) -> 1,325 | H18: =SUM(tbl_Categoría_de_gastos_04[jun]) -> 1,200 | I18: =SUM(tbl_Categoría_de_gastos_04[jul]) -> 1,100 | J18: =SUM(tbl_Categoría_de_gastos_04[ago]) -> 1,200 | K18: =SUM(tbl_Categoría_de_gastos_04[sep]) -> 1,150 | L18: =SUM(tbl_Categoría_de_gastos_04[oct]) -> 1,025 | M18: =SUM(tbl_Categoría_de_gastos_04[nov]) -> 925 | N18: =SUM(tbl_Categoría_de_gastos_04[dic]) -> 925 | O18: =SUM(tbl_Categoría_de_gastos_04[año]) -> 12,935 | P18: =SUM(tbl_Categoría_de_gastos_04[media]) -> 1,078
B19: =LOWER(Presupuesto!B39) -> niños | C19: =SUM(tbl_Categoría_de_gastos_03[ene]) -> 2,373 | D19: =SUM(tbl_Categoría_de_gastos_03[feb]) -> 500 | E19: =SUM(tbl_Categoría_de_gastos_03[mar]) -> 350 | F19: =SUM(tbl_Categoría_de_gastos_03[abr]) -> 250 | G19: =SUM(tbl_Categoría_de_gastos_03[may]) -> 350 | H19: =SUM(tbl_Categoría_de_gastos_03[jun]) -> 450 | I19: =SUM(tbl_Categoría_de_gastos_03[jul]) -> 200 | J19: =SUM(tbl_Categoría_de_gastos_03[ago]) -> 545 | K19: =SUM(tbl_Categoría_de_gastos_03[sep]) -> 350 | L19: =SUM(tbl_Categoría_de_gastos_03[oct]) -> 350 | M19: =SUM(tbl_Categoría_de_gastos_03[nov]) -> 250 | N19: =SUM(tbl_Categoría_de_gastos_03[dic]) -> 350 | O19: =SUM(tbl_Categoría_de_gastos_03[año]) -> 6,318 | P19: =SUM(tbl_Categoría_de_gastos_03[media]) -> 527
B20: =LOWER(Presupuesto!B30) -> gastos cotidianos | C20: =SUM(tbl_Categoría_de_gastos_02[ene]) -> 795 | D20: =SUM(tbl_Categoría_de_gastos_02[feb]) -> 375 | E20: =SUM(tbl_Categoría_de_gastos_02[mar]) -> 550 | F20: =SUM(tbl_Categoría_de_gastos_02[abr]) -> 825 | G20: =SUM(tbl_Categoría_de_gastos_02[may]) -> 500 | H20: =SUM(tbl_Categoría_de_gastos_02[jun]) -> 450 | I20: =SUM(tbl_Categoría_de_gastos_02[jul]) -> 875 | J20: =SUM(tbl_Categoría_de_gastos_02[ago]) -> 475 | K20: =SUM(tbl_Categoría_de_gastos_02[sep]) -> 400 | L20: =SUM(tbl_Categoría_de_gastos_02[oct]) -> 825 | M20: =SUM(tbl_Categoría_de_gastos_02[nov]) -> 575 | N20: =SUM(tbl_Categoría_de_gastos_02[dic]) -> 375 | O20: =SUM(tbl_Categoría_de_gastos_02[año]) -> 7,020 | P20: =SUM(tbl_Categoría_de_gastos_02[media]) -> 585
B21: =LOWER(Presupuesto!B21) -> gastos domésticos | C21: =SUM(tbl_Categoría_de_gastos_01[ene]) -> 1,208 | D21: =SUM(tbl_Categoría_de_gastos_01[feb]) -> 1,208 | E21: =SUM(tbl_Categoría_de_gastos_01[mar]) -> 1,233 | F21: =SUM(tbl_Categoría_de_gastos_01[abr]) -> 1,208 | G21: =SUM(tbl_Categoría_de_gastos_01[may]) -> 1,158 | H21: =SUM(tbl_Categoría_de_gastos_01[jun]) -> 1,183 | I21: =SUM(tbl_Categoría_de_gastos_01[jul]) -> 1,283 | J21: =SUM(tbl_Categoría_de_gastos_01[ago]) -> 1,333 | K21: =SUM(tbl_Categoría_de_gastos_01[sep]) -> 1,208 | L21: =SUM(tbl_Categoría_de_gastos_01[oct]) -> 1,158 | M21: =SUM(tbl_Categoría_de_gastos_01[nov]) -> 1,208 | N21: =SUM(tbl_Categoría_de_gastos_01[dic]) -> 1,208 | O21: =SUM(tbl_Categoría_de_gastos_01[año]) -> 14,596 | P21: =SUM(tbl_Categoría_de_gastos_01[media]) -> 1,216
B26: Flujo de efectivo acumulado | C26: =SUM(Presupuesto!$C$8:C$8) -> -3,714 | D26: =SUM(Presupuesto!$C$8:D$8) -> 76 | E26: =SUM(Presupuesto!$C$8:E$8) -> -1,857 | F26: =SUM(Presupuesto!$C$8:F$8) -> -3,670 | G26: =SUM(Presupuesto!$C$8:G$8) -> -138 | H26: =SUM(Presupuesto!$C$8:H$8) -> -3,731 | I26: =SUM(Presupuesto!$C$8:I$8) -> -7,974 | J26: =SUM(Presupuesto!$C$8:J$8) -> -6,827 | K26: =SUM(Presupuesto!$C$8:K$8) -> -8,810 | L26: =SUM(Presupuesto!$C$8:L$8) -> -10,753 | M26: =SUM(Presupuesto!$C$8:M$8) -> -6,811 | N26: =SUM(Presupuesto!$C$8:N$8) -> -7,769 | O26: =SUM(Presupuesto!$C$8:O$8) -> -15,538
B28: Flujo de efectivo positivo anual | C28: =IF(Presupuesto!C$8<0,NA(),IF(período+2<>COLUMN(Presupuesto!C$8),NA(),Presupuesto!C$8)) ->  | D28: =IF(Presupuesto!D$8<0,NA(),IF(período+2<>COLUMN(Presupuesto!D$8),NA(),Presupuesto!D$8)) ->  | E28: =IF(Presupuesto!E$8<0,NA(),IF(período+2<>COLUMN(Presupuesto!E$8),NA(),Presupuesto!E$8)) ->  | F28: =IF(Presupuesto!F$8<0,NA(),IF(período+2<>COLUMN(Presupuesto!F$8),NA(),Presupuesto!F$8)) ->  | G28: =IF(Presupuesto!G$8<0,NA(),IF(período+2<>COLUMN(Presupuesto!G$8),NA(),Presupuesto!G$8)) ->  | H28: =IF(Presupuesto!H$8<0,NA(),IF(período+2<>COLUMN(Presupuesto!H$8),NA(),Presupuesto!H$8)) ->  | I28: =IF(Presupuesto!I$8<0,NA(),IF(período+2<>COLUMN(Presupuesto!I$8),NA(),Presupuesto!I$8)) ->  | J28: =IF(Presupuesto!J$8<0,NA(),IF(período+2<>COLUMN(Presupuesto!J$8),NA(),Presupuesto!J$8)) ->  | K28: =IF(Presupuesto!K$8<0,NA(),IF(período+2<>COLUMN(Presupuesto!K$8),NA(),Presupuesto!K$8)) ->  | L28: =IF(Presupuesto!L$8<0,NA(),IF(período+2<>COLUMN(Presupuesto!L$8),NA(),Presupuesto!L$8)) ->  | M28: =IF(Presupuesto!M$8<0,NA(),IF(período+2<>COLUMN(Presupuesto!M$8),NA(),Presupuesto!M$8)) ->  | N28: =IF(Presupuesto!N$8<0,NA(),IF(período+2<>COLUMN(Presupuesto!N$8),NA(),Presupuesto!N$8)) ->  | O28: =IF(Presupuesto!O$8<0,NA(),IF(período+2<>COLUMN(Presupuesto!O$8),NA(),Presupuesto!O$8)) -> 
B29: Flujo de efectivo negativo anual | C29: =IF(Presupuesto!C$8>=0,NA(),IF(período+2<>COLUMN(Presupuesto!C$8),NA(),Presupuesto!C$8)) ->  | D29: =IF(Presupuesto!D$8>=0,NA(),IF(período+2<>COLUMN(Presupuesto!D$8),NA(),Presupuesto!D$8)) ->  | E29: =IF(Presupuesto!E$8>=0,NA(),IF(período+2<>COLUMN(Presupuesto!E$8),NA(),Presupuesto!E$8)) -> -1,933 | F29: =IF(Presupuesto!F$8>=0,NA(),IF(período+2<>COLUMN(Presupuesto!F$8),NA(),Presupuesto!F$8)) ->  | G29: =IF(Presupuesto!G$8>=0,NA(),IF(período+2<>COLUMN(Presupuesto!G$8),NA(),Presupuesto!G$8)) ->  | H29: =IF(Presupuesto!H$8>=0,NA(),IF(período+2<>COLUMN(Presupuesto!H$8),NA(),Presupuesto!H$8)) ->  | I29: =IF(Presupuesto!I$8>=0,NA(),IF(período+2<>COLUMN(Presupuesto!I$8),NA(),Presupuesto!I$8)) ->  | J29: =IF(Presupuesto!J$8>=0,NA(),IF(período+2<>COLUMN(Presupuesto!J$8),NA(),Presupuesto!J$8)) ->  | K29: =IF(Presupuesto!K$8>=0,NA(),IF(período+2<>COLUMN(Presupuesto!K$8),NA(),Presupuesto!K$8)) ->  | L29: =IF(Presupuesto!L$8>=0,NA(),IF(período+2<>COLUMN(Presupuesto!L$8),NA(),Presupuesto!L$8)) ->  | M29: =IF(Presupuesto!M$8>=0,NA(),IF(período+2<>COLUMN(Presupuesto!M$8),NA(),Presupuesto!M$8)) ->  | N29: =IF(Presupuesto!N$8>=0,NA(),IF(período+2<>COLUMN(Presupuesto!N$8),NA(),Presupuesto!N$8)) ->  | O29: =IF(Presupuesto!O$8>=0,NA(),IF(período+2<>COLUMN(Presupuesto!O$8),NA(),Presupuesto!O$8)) -> 
B37: =LOWER(mostrar_período_largo) -> marzo
B38: ="Ingresos de "& mostrar_período_largo -> Ingresos de marzo | C38: =INDEX(Presupuesto!$C$6:$P$6,,período) -> 4,000 €
B39: ="Gastos de " & mostrar_período_largo&": " & TEXT(INDEX(Presupuesto!$C$7:$P$7,,período),"#.##0 €") -> Gastos de marzo: 5.933 € | C39: =INDEX(Presupuesto!$C$7:$P$7,,período) -> 5,933 €
B40: ="Flujo de caja de "& mostrar_período_largo -> Flujo de caja de marzo | C40: =ABS(INDEX(Presupuesto!$C$8:$P$8,,período)) -> 1,933 € | D40: =REPT("-",INDEX(Presupuesto!$C$8:$P$8,,período)<0) -> -
